bitfinex/quotes_SOLUSD_20220114
["timestamp","ask_amount","ask_price","bid_price","bid_amount"]
[1642142076871,15.82,150.15,150.14,0.00208689]
[1642142077074,15.57,150.15,150.14,0.00208689]
[1642142077272,15.61,150.15,150.14,0.00208689]
[1642142078473,15.86,150.15,150.14,0.00208689]
[1642142079396,15.61,150.15,150.14,0.00208689]
[1642142079606,6.04,150.15,150.14,0.00208689]
[1642142081708,6.29,150.15,150.14,0.00208689]
[1642142089024,6.04,150.15,150.14,0.00208689]
[1642142089221,0.04,150.15,150.14,0.91388913]
[1642142089423,6.04,150.15,150.14,0.91388913]
[1642142089819,0.04,150.15,150.14,32.9169031]
[1642142090021,35.48405838,150.22,150.14,32.9169031]
[1642142090320,35.48405838,150.22,150.15,9.9871]
[1642142090948,35.73405838,150.22,150.15,9.9871]
[1642142091350,35.73405838,150.22,150.14,0.00208689]
[1642142091653,35.73405838,150.22,150.15,2.662]
[1642142092252,29.73405838,150.22,150.15,2.662]
[1642142092452,29.73405838,150.22,150.15,12.6492]
[1642142092655,29.73405838,150.22,150.15,27.55523239]
[1642142092852,29.73405838,150.22,150.16,2.662]
[1642142093452,35.73405838,150.22,150.16,2.662]
[1642142094156,35.73405838,150.22,150.16,12.6486]
[1642142094353,35.73405838,150.22,150.16,2.662]
[1642142094553,35.73405838,150.22,150.12,32.237]
[1642142094554,35.73405838,150.22,150.13,2.662]
[1642142095553,2.662,150.21,150.12,32.6559]
[1642142095953,8.912,150.21,150.09,2.662]
[1642142097054,5.94735347,150.19,150.09,2.662]
[1642142097254,8.61135347,150.19,150.1,9.9903]
[1642142097454,14.86135347,150.19,150.11,2.664]
[1642142097654,14.86135347,150.19,150.1,9.9903]
[1642142098559,14.86135347,150.19,150.09,2.664]
[1642142098757,76.56,150.18,150.09,2.664]
[1642142098962,2.664,150.17,150.09,2.664]
[1642142099361,8.914,150.17,150.09,2.664]
[1642142099559,29.48405838,150.16,150.09,2.664]
[1642142100066,35.73405838,150.16,150.13,1.89974689]
[1642142100261,5.15259769,150.15,150.13,1.89974689]
[1642142100460,11.40259769,150.15,150.13,1.89974689]
[1642142100662,2.664,150.14,150.13,1.89974689]
[1642142100862,2.664,150.14,150.13,4.689e-05]
[1642142101063,8.914,150.14,150.13,4.689e-05]
[1642142101662,8.914,150.14,150.05,2.664]
[1642142101865,23.38988878,150.13,150.05,2.664]
[1642142102068,29.63988878,150.13,150.05,2.664]
[1642142103367,96.62988878,150.13,150.05,2.664]
[1642142104468,9.57,150.12,150.05,2.664]
[1642142104967,82.81,150.12,150.05,2.664]
[1642142106171,2.665,150.11,150.02,13.91026788]
[1642142106370,9.57,150.1,150.02,13.91026788]
[1642142106569,2.665,150.09,150.02,13.91026788]
[1642142106769,12.235,150.09,150.02,13.91026788]
[1642142106971,12.04152307,150.08,150.02,13.91026788]
[1642142107170,2.665,150.07,150.02,13.91026788]
[1642142107471,0.25,150.07,150.02,13.41026788]
[1642142107674,6.25,150.07,150.02,13.41026788]
[1642142108372,0.25,150.07,150.02,13.41026788]
[1642142108571,73.24,150.07,150.02,13.41026788]
[1642142109903,12.235,150.06,149.95,36.185]
[1642142110108,12.235,150.06,149.93,9.49873444]
[1642142110306,41.591,150.06,149.93,9.49873444]
[1642142110502,119.68,150.05,149.93,9.49873444]
[1642142110703,12.236,150.04,149.93,9.49873444]
[1642142110904,33.3522,150.03,149.93,9.49873444]
[1642142111105,34.28092307,150.02,149.93,9.49873444]
[1642142111305,66.99,150.01,149.93,9.49873444]
[1642142111503,66.99,149.99,149.93,9.49873444]
[1642142111702,12.236,149.98,149.93,9.49873444]
[1642142112106,9.9796209,149.97,149.93,9.49873444]
[1642142112304,12.236,149.96,149.85,2.666]
[1642142112506,22.4934,149.96,149.85,12.6731]
[1642142112705,22.4934,149.96,149.86,33.52]
[1642142112907,142.1734,149.96,149.86,33.52]
[1642142113305,151.26468539,149.96,149.86,33.52]
[1642142113605,66.99,149.95,149.86,33.52]
[1642142113805,22.05052307,149.93,149.86,33.52]
[1642142114007,79.228,149.92,149.86,33.52]
[1642142114410,79.478,149.92,149.86,33.52]
[1642142114907,79.478,149.92,149.85,33.52]
[1642142115306,89.4876,149.92,149.85,33.52]
[1642142115706,95.4876,149.92,149.85,33.52]
[1642142117314,28.4976,149.92,149.85,33.52]
[1642142117512,18.488,149.92,149.85,33.52]
[1642142118613,18.488,149.92,149.86,41.17194438]
[1642142119820,66.99,149.91,149.86,41.17194438]
[1642142120013,86.5396209,149.9,149.86,33.52]
[1642142120413,92.7896209,149.9,149.86,33.52]
[1642142120814,25.5496209,149.9,149.86,33.52]
[1642142122017,9.57,149.92,149.86,39.2586332]
[1642142122218,0.61586549,149.91,149.87,2.668]
[1642142123119,0.61586549,149.91,149.87,10.31896278]
[1642142126919,0.61586549,149.91,149.87,13.38959598]
[1642142128220,15.82,149.92,149.87,8.4066332]
[1642142128524,6.0,149.92,149.87,8.4066332]
[1642142128919,23.6768,149.97,149.87,8.4066332]
[1642142129320,8.75618447,149.96,149.87,8.4066332]
[1642142129719,9.00618447,149.96,149.87,8.4066332]
[1642142130020,9.00618447,149.96,149.87,16.05667921]
[1642142130320,18.57618447,149.96,149.87,26.06267921]
[1642142130523,21.24418447,149.96,149.87,16.05667921]
[1642142130922,21.24418447,149.96,149.87,13.38867921]
[1642142131122,21.24418447,149.96,149.84,2.668]
[1642142131520,31.25128447,149.96,149.84,2.668]
[1642142131923,31.25128447,149.96,149.83,2.668]
[1642142132325,31.25128447,149.96,149.82,2.668]
[1642142132526,37.25128447,149.96,149.82,2.668]
[1642142133128,37.25128447,149.96,149.83,10.0088]
[1642142133326,10.0089,149.93,149.84,2.668]
[1642142133527,3.2853386,149.91,149.84,2.668]
[1642142133927,3.5353386,149.91,149.84,2.668]
[1642142134530,3.5353386,149.91,149.84,12.6762]
[1642142135130,3.5353386,149.91,149.84,2.668]
[1642142135832,3.5353386,149.91,149.84,12.6761]
[1642142136031,9.5353386,149.91,149.84,2.668]
[1642142137033,2.668,149.9,149.82,2.668]
[1642142137340,2.668,149.9,149.82,12.6775]
[1642142137532,2.918,149.9,149.82,12.6775]
[1642142137735,12.488,149.9,149.82,2.668]
[1642142138135,12.488,149.9,149.79,36.189]
[1642142138333,22.499,149.9,149.79,46.2004]
[1642142138532,89.489,149.9,149.79,46.2004]
[1642142138932,22.499,149.9,149.79,46.2004]
[1642142139532,22.499,149.9,149.79,12.6804]
[1642142140535,22.499,149.9,149.79,2.669]
[1642142140735,22.499,149.9,149.77,12.16773444]
[1642142140933,46.8971,149.9,149.77,9.49873444]
[1642142141132,54.61616317,149.9,149.77,9.49873444]
[1642142141535,54.61616317,149.9,149.74,2.669]
[1642142141536,54.61616317,149.9,149.75,9.49873444]
[1642142141835,77.95826317,149.9,149.75,9.49873444]
[1642142142635,77.95826317,149.9,149.74,2.669]
[1642142142836,8.75618447,149.88,149.74,2.669]
[1642142143035,3.2853386,149.84,149.74,2.669]
[1642142143435,70.5253386,149.84,149.74,12.6838]
[1642142143634,76.5253386,149.84,149.74,12.6838]
[1642142143835,9.5353386,149.84,149.74,12.6838]
[1642142144239,9.2853386,149.84,149.75,31.01723485]
[1642142144444,9.2853386,149.84,149.76,10.013]
[1642142144641,6.0,149.84,149.76,10.013]
[1642142145041,9.57,149.85,149.76,10.013]
[1642142145441,491.80092954,149.89,149.76,19.843]
[1642142145641,489.13092954,149.89,149.76,19.843]
[1642142146643,489.13092954,149.89,149.77,2.669]
[1642142147041,495.13092954,149.89,149.8,10.0102]
[1642142147244,489.13092954,149.89,149.81,2.669]
[1642142147442,9.19620608,149.9,149.81,2.669]
[1642142147642,2.669,149.89,149.8,10.0102]
[1642142147842,66.99,149.87,149.7,36.52287226]
[1642142148043,66.99,149.81,149.7,36.52287226]
[1642142148243,66.99,149.79,149.7,0.33387226]
[1642142148450,10.02,149.76,149.7,0.33387226]
[1642142148644,12.24,149.75,149.71,2.67]
[1642142148845,0.25,149.76,149.73,0.91180224]
[1642142149143,6.0,149.79,149.73,3.58180224]
[1642142149545,6.0,149.79,149.73,13.59580224]
[1642142149746,9.57,149.81,149.73,13.59580224]
[1642142149949,9.57,149.81,149.73,2.67]
[1642142150249,15.57,149.81,149.71,2.67]
[1642142150447,2.67,149.8,149.7,0.33387226]
[1642142150671,9.57,149.79,149.7,0.33387226]
[1642142150873,10.0183,149.77,149.74,3.8299096]
[1642142151074,10.2683,149.77,149.74,7.6598192]
[1642142151472,5.15259769,149.76,149.74,7.6598192]
[1642142151671,3.03219997,149.76,149.74,7.6598192]
[1642142151875,9.28219997,149.76,149.74,7.6598192]
[1642142152276,9.28219997,149.76,149.72,3.8299096]
[1642142154576,21.52219997,149.76,149.72,3.8299096]
[1642142154775,88.51219997,149.76,149.72,3.8299096]
[1642142154977,85.84219997,149.76,149.72,3.8299096]
[1642142155176,2.67,149.75,149.72,3.8299096]
[1642142155375,2.12039772,149.74,149.72,3.8299096]
[1642142155576,2.37039772,149.74,149.71,7.6598192]
[1642142155779,21.96049772,149.74,149.71,7.6598192]
[1642142155978,66.99,149.73,149.71,7.6598192]
[1642142156180,12.24,149.72,149.71,7.6598192]
[1642142156380,79.23,149.72,149.71,7.6598192]
[1642142156580,14.61039772,149.72,149.7,0.33387226]
[1642142156780,9.82,149.72,149.7,0.33387226]
[1642142157179,19.842,149.72,149.7,0.33387226]
[1642142157679,2.12039772,149.71,149.7,0.33387226]
[1642142158080,2.37039772,149.71,149.7,0.33387226]
[1642142158280,2.37039772,149.71,149.7,4.16497185]
[1642142158979,8.37039772,149.71,149.7,4.16497185]
[1642142159381,11.40259769,149.71,149.7,4.16497185]
[1642142160381,9.28219997,149.71,149.7,4.16497185]
[1642142161682,9.03219997,149.71,149.7,6.83497185]
[1642142161927,9.03219997,149.71,149.7,10.66488145]
[1642142162083,9.57,149.72,149.7,10.66488145]
[1642142162084,9.57,149.72,149.7,8.90668369]
[1642142162285,9.57,149.75,149.7,40.04969307]
[1642142162485,2.67,149.78,149.7,8.90668369]
[1642142162688,12.24,149.82,149.73,10.015]
[1642142162885,12.24,149.82,149.74,2.67]
[1642142163095,12.24,149.82,149.72,8.344]
[1642142163688,12.24,149.82,149.75,3.83109959]
[1642142163889,22.2547,149.82,149.75,3.83109959]
[1642142164489,22.5047,149.82,149.75,3.83109959]
[1642142164689,22.5047,149.82,149.74,3.82987202]
[1642142165588,22.5047,149.82,149.73,3.82987202]
[1642142167691,66.99,149.81,149.73,3.82987202]
[1642142167892,10.0187,149.77,149.73,3.82987202]
[1642142168192,19.8387,149.77,149.73,3.82987202]
[1642142168390,2.67,149.76,149.73,3.82987202]
[1642142168593,11.69039772,149.75,149.73,3.82987202]
[1642142168892,10.0218,149.73,149.71,7.66097161]
[1642142169092,86.8318,149.73,149.71,7.66097161]
[1642142169294,19.8418,149.73,149.71,7.66097161]
[1642142169693,19.8418,149.73,149.7,0.33387226]
[1642142169893,2.12039772,149.72,149.7,0.33387226]
[1642142170095,2.37039772,149.72,149.7,0.33387226]
[1642142170296,12.39179772,149.72,149.7,0.33387226]
[1642142170596,9.57,149.71,149.7,0.33387226]
[1642142170996,9.82,149.71,149.7,0.33387226]
[1642142171594,9.82,149.71,149.7,4.16516969]
[1642142178228,0.25,149.71,149.7,4.16516969]
[1642142178626,0.25,149.71,149.7,8.10907193]
[1642142178825,0.25,149.71,149.7,10.77907193]
[1642142179427,9.57,149.76,149.7,10.77907193]
[1642142179827,19.5887,149.76,149.7,10.77907193]
[1642142180025,19.5887,149.76,149.7,7.19726969]
[1642142180825,19.5887,149.76,149.71,7.66208266]
[1642142181027,19.8387,149.76,149.71,7.66208266]
[1642142181428,0.25,149.76,149.71,7.66208266]
[1642142181626,2.67,149.78,149.71,39.53639477]
[1642142181828,9.57,149.79,149.71,50.13439477]
[1642142182026,9.57,149.81,149.71,50.13439477]
[1642142182229,2.67,149.8,149.71,50.13439477]
[1642142182628,2.67,149.8,149.73,3.83078523]
[1642142182927,2.67,149.8,149.73,13.84618523]
[1642142183127,2.67,149.8,149.73,3.83078523]
[1642142183328,2.92,149.8,149.73,3.83078523]
[1642142183728,2.92,149.8,149.74,3.83078523]
[1642142185232,12.9362,149.8,149.74,3.83078523]
[1642142188636,10.2662,149.8,149.74,3.83078523]
[1642142190939,0.25,149.8,149.74,3.83078523]
[1642142191337,12.49,149.81,149.74,3.83078523]
[1642142191539,12.49,149.81,149.74,7.66208266]
[1642142192037,2.67,149.81,149.74,17.67658266]
[1642142192454,505.88342197,149.83,149.75,3.83078523]
[1642142193339,505.88342197,149.83,149.76,3.83078523]
[1642142193938,506.13342197,149.83,149.76,3.83078523]
[1642142194137,516.14782197,149.83,149.76,3.83078523]
[1642142195340,583.13782197,149.83,149.76,3.83078523]
[1642142195742,583.13782197,149.83,149.77,3.83078523]
[1642142196744,516.14782197,149.83,149.76,3.83078523]
[1642142198042,515.89782197,149.83,149.76,3.83078523]
[1642142199147,515.89782197,149.83,149.77,3.83078523]
[1642142199547,516.14782197,149.83,149.77,3.83078523]
[1642142199746,525.71782197,149.83,149.77,3.83078523]
[1642142199949,525.71782197,149.83,149.76,3.83078523]
[1642142200147,10.0167,149.8,149.76,3.83078523]
[1642142200549,10.2667,149.8,149.76,3.83078523]
[1642142200749,10.2667,149.8,149.75,7.66208266]
[1642142200949,0.25,149.8,149.75,7.66208266]
[1642142201553,12.9353,149.82,149.75,7.66208266]
[1642142202452,66.99,149.81,149.75,7.66208266]
[1642142202651,77.0057,149.81,149.75,3.83129743]
[1642142202853,77.2557,149.81,149.75,3.83129743]
[1642142203280,10.2657,149.81,149.75,3.83129743]
[1642142203680,10.2657,149.81,149.74,7.66208266]
[1642142204984,77.2557,149.81,149.74,7.66208266]
[1642142205984,77.2557,149.81,149.75,3.83078523]
[1642142206183,10.2657,149.81,149.75,3.83078523]
[1642142206586,0.25,149.81,149.75,3.83078523]
[1642142206983,2.92,149.82,149.75,3.83078523]
[1642142207184,0.25,149.82,149.75,3.83078523]
[1642142207584,516.14812197,149.83,149.75,3.83078523]
[1642142207783,515.89812197,149.83,149.75,3.83078523]
[1642142208186,582.88812197,149.83,149.75,13.84488523]
[1642142208387,582.88812197,149.83,149.76,3.83078523]
[1642142208986,516.14812197,149.83,149.76,3.83078523]
[1642142209187,516.14812197,149.83,149.75,6.50078523]
[1642142209989,516.14812197,149.83,149.76,3.83129743]
[1642142210186,2.67,149.82,149.76,3.83129743]
[1642142210386,10.0155,149.81,149.76,3.83129743]
[1642142210589,10.2655,149.81,149.76,3.83129743]
[1642142211587,10.017,149.79,149.74,3.83078523]
[1642142211988,10.267,149.79,149.74,3.83078523]
[1642142212487,10.267,149.79,149.73,3.83078523]
[1642142213491,10.267,149.79,149.73,3.33078523]
[1642142213688,10.267,149.79,149.74,3.83037518]
[1642142214189,10.0196,149.76,149.74,3.83037518]
[1642142214388,2.12039772,149.75,149.74,3.83037518]
[1642142214588,2.37039772,149.75,149.72,3.83037518]
[1642142215593,2.37039772,149.75,149.71,3.83037518]
[1642142215791,12.38999772,149.75,149.71,3.83037518]
[1642142216993,2.37039772,149.75,149.71,3.83037518]
[1642142217395,2.37039772,149.75,149.7,0.33387226]
[1642142220498,2.37039772,149.75,149.68,2.50387226]
[1642142221198,2.37039772,149.75,149.72,1.91575759]
[1642142221999,2.37039772,149.75,149.73,0.91180224]
[1642142222696,2.37039772,149.75,149.73,2.82755983]
[1642142222896,2.37039772,149.75,149.73,1.91575759]
[1642142223897,2.12039772,149.75,149.73,1.91575759]
[1642142224299,2.12039772,149.75,149.72,1.91575759]
[1642142225499,2.37039772,149.75,149.72,1.91575759]
[1642142226000,2.67,149.74,149.72,1.91575759]
[1642142226399,2.92,149.74,149.71,1.91575759]
[1642142227299,9.57,149.73,149.7,1.91575759]
[1642142227499,12.693,149.72,149.7,1.91575759]
[1642142227900,12.943,149.72,149.7,1.91575759]
[1642142228502,12.943,149.72,149.69,1.41575759]
[1642142229800,10.273,149.72,149.63,31.93252346]
[1642142230001,10.273,149.72,149.63,31.43252346]
[1642142231104,10.273,149.72,149.64,10.0215]
[1642142232505,0.25,149.72,149.64,10.0215]
[1642142232707,0.25,149.72,149.65,2.672]
[1642142232905,9.82,149.73,149.65,2.672]
[1642142234105,19.8411,149.73,149.65,2.672]
[1642142236312,86.8311,149.73,149.65,2.672]
[1642142236515,86.8311,149.73,149.64,2.672]
[1642142237842,2.672,149.72,149.63,26.1893]
[1642142238041,10.0232,149.7,149.63,26.1893]
[1642142238442,10.2732,149.7,149.63,26.1893]
[1642142238841,10.2732,149.7,149.63,25.6893]
[1642142239243,19.8432,149.7,149.63,25.6893]
[1642142239442,19.8432,149.7,149.63,2.672]
[1642142239644,86.8332,149.7,149.63,2.672]
[1642142239850,2.672,149.69,149.61,2.672]
[1642142240043,10.0274,149.64,149.6,5.74522346]
[1642142240545,10.0274,149.64,149.58,5.74522346]
[1642142240546,10.2774,149.64,149.58,5.74522346]
[1642142241944,10.2774,149.64,149.55,26.2965]
[1642142242145,35.1679,149.64,149.55,36.3239]
[1642142242347,35.1679,149.64,149.55,60.60791511]
[1642142242546,0.25,149.64,149.55,60.60791511]
[1642142243045,2.923,149.65,149.55,60.60791511]
[1642142243246,0.25,149.65,149.55,60.60791511]
[1642142243445,22.5191,149.66,149.55,60.60791511]
[1642142243944,22.2691,149.66,149.55,60.60791511]
[1642142244145,12.243,149.66,149.55,60.60791511]
[1642142244348,12.243,149.7,149.55,60.60791511]
[1642142244548,35.2653,149.7,149.55,60.60791511]
[1642142244746,35.2653,149.7,149.55,60.86791511]
[1642142245147,45.2888,149.7,149.55,60.86791511]
[1642142245850,45.2888,149.7,149.56,7.66809865]
[1642142246049,45.5388,149.7,149.59,10.0243]
[1642142246852,45.5388,149.7,149.59,34.7117]
[1642142247048,112.5288,149.7,149.59,34.7117]
[1642142247249,45.5388,149.7,149.59,34.7117]
[1642142248852,112.5288,149.7,149.6,2.672]
[1642142249052,112.5288,149.7,149.59,34.7117]
[1642142249953,45.5388,149.7,149.59,37.3837]
[1642142251855,22.5165,149.7,149.59,37.3837]
[1642142252056,22.5165,149.7,149.59,37.6437]
[1642142252255,9.82,149.7,149.59,37.6437]
[1642142252455,0.25,149.7,149.59,37.6437]
[1642142252855,2.922,149.71,149.59,37.3837]
[1642142253055,12.492,149.71,149.59,37.3837]
[1642142253656,79.482,149.71,149.59,37.3837]
[1642142253858,32.9185,149.7,149.59,27.3594]
[1642142254055,2.672,149.69,149.59,24.6874]
[1642142254456,2.922,149.69,149.59,24.6874]
[1642142255058,10.0256,149.67,149.59,24.6874]
[1642142255456,12.9486,149.67,149.59,24.6874]
[1642142255756,12.9486,149.67,149.57,2.673]
[1642142255956,9.57,149.66,149.57,2.673]
[1642142256159,10.0288,149.62,149.57,2.673]
[1642142256558,10.2788,149.62,149.57,2.673]
[1642142257357,10.2788,149.62,149.54,2.673]
[1642142258863,0.25,149.62,149.54,38.1445408]
[1642142259062,10.2775,149.64,149.54,38.1445408]
[1642142259664,10.2775,149.64,149.54,12.7012]
[1642142259862,10.2775,149.64,149.54,2.673]
[1642142260463,66.99,149.63,149.54,2.673]
[1642142260662,10.0291,149.61,149.54,2.673]
[1642142261062,10.2791,149.61,149.54,2.673]
[1642142261863,0.25,149.61,149.54,2.673]
[1642142262061,67.24,149.63,149.54,2.673]
[1642142264066,10.0283,149.62,149.54,12.701]
[1642142264468,10.2783,149.62,149.54,12.701]
[1642142264667,10.2783,149.62,149.54,2.673]
[1642142264869,33.9654,149.62,149.54,2.673]
[1642142266368,36.6394,149.62,149.54,2.673]
[1642142267170,36.6394,149.62,149.54,12.7012]
[1642142267171,2.924,149.62,149.54,12.7012]
[1642142267372,0.25,149.62,149.54,12.7012]
[1642142267572,12.9514,149.64,149.54,36.2434]
[1642142268074,2.924,149.64,149.54,36.2434]
[1642142268674,0.25,149.64,149.54,36.2434]
[1642142269074,27.7028,149.65,149.54,36.2434]
[1642142270276,10.0269,149.64,149.54,36.2434]
[1642142270477,10.2769,149.64,149.54,36.2434]
[1642142271078,0.25,149.64,149.54,36.2434]
[1642142271680,35.0561,149.65,149.54,36.2434]
[1642142272586,35.0561,149.65,149.54,36.5034]
[1642142275391,25.0298,149.65,149.54,36.5034]
[1642142280321,0.25,149.65,149.54,36.5034]
[1642142280518,12.9485,149.66,149.54,36.5034]
[1642142283518,12.6985,149.66,149.54,36.5034]
[1642142283819,2.673,149.66,149.54,36.5034]
[1642142285521,2.923,149.66,149.54,36.5034]
[1642142285721,2.923,149.66,149.54,36.2434]
[1642142286123,24.3356,149.65,149.54,36.2434]
[1642142286521,24.5856,149.65,149.54,36.2434]
[1642142286920,24.5856,149.65,149.54,41.98862346]
[1642142287120,24.5856,149.65,149.54,42.24862346]
[1642142287521,24.5856,149.65,149.54,41.98862346]
[1642142287922,101.1456,149.65,149.54,41.98862346]
[1642142288524,101.1456,149.65,149.54,36.2434]
[1642142288723,2.673,149.64,149.54,33.5704]
[1642142288924,10.0285,149.62,149.54,33.5704]
[1642142289324,10.2785,149.62,149.54,33.5704]
[1642142289526,10.2785,149.62,149.54,23.5422]
[1642142290025,0.25,149.62,149.55,2.674]
[1642142290426,22.5204,149.64,149.55,2.674]
[1642142291126,22.2704,149.64,149.56,10.0268]
[1642142291525,22.2704,149.64,149.55,2.674]
[1642142292526,22.5204,149.64,149.55,12.7016]
[1642142292727,19.8474,149.64,149.55,12.7016]
[1642142293026,19.5974,149.64,149.55,12.7016]
[1642142293228,19.5974,149.64,149.55,43.59085439]
[1642142294329,19.8474,149.64,149.55,43.59085439]
[1642142295332,9.82,149.64,149.55,43.59085439]
[1642142296530,9.82,149.64,149.55,43.85085439]
[1642142296732,0.25,149.64,149.55,43.85085439]
[1642142296958,24.5856,149.65,149.55,43.85085439]
[1642142297133,24.5856,149.65,149.55,43.59085439]
[1642142297532,34.6121,149.65,149.55,43.59085439]
[1642142299133,2.673,149.64,149.55,43.59085439]
[1642142299335,2.673,149.64,149.55,40.91685439]
[1642142299534,12.9503,149.64,149.55,40.91685439]
[1642142299733,2.923,149.64,149.55,40.91685439]
[1642142299934,2.923,149.64,149.55,41.17685439]
[1642142300535,0.25,149.64,149.57,10.026]
[1642142300935,27.2586,149.65,149.57,10.026]
[1642142302236,37.2854,149.65,149.57,10.026]
[1642142302436,34.6124,149.65,149.57,10.026]
[1642142302635,2.673,149.64,149.57,10.026]
[1642142303035,2.923,149.64,149.57,10.026]
[1642142303839,0.25,149.64,149.57,10.026]
[1642142304036,24.5856,149.65,149.57,10.026]
[1642142305336,27.2586,149.65,149.57,10.026]
[1642142306539,27.0086,149.65,149.57,10.026]
[1642142306939,24.3356,149.65,149.57,10.026]
[1642142307843,0.25,149.65,149.57,10.026]
[1642142308040,9.82,149.68,149.58,23.9588]
[1642142308239,9.82,149.68,149.6,10.0237]
[1642142313551,9.82,149.68,149.61,24.76499886]
[1642142313750,9.82,149.68,149.61,34.78849886]
[1642142318863,9.82,149.68,149.59,12.6974]
[1642142319160,22.9426,149.67,149.59,12.6974]
[1642142319581,23.1926,149.67,149.59,12.6974]
[1642142319982,23.1926,149.67,149.59,35.61012001]
[1642142320182,23.1926,149.67,149.59,35.87012001]
[1642142322183,22.9426,149.67,149.59,35.87012001]
[1642142322983,22.9426,149.67,149.6,3.8346731]
[1642142323185,22.9426,149.67,149.61,10.0235]
[1642142323586,23.1926,149.67,149.61,10.2835]
[1642142323785,23.1926,149.67,149.61,10.0235]
[1642142325688,23.1926,149.67,149.59,35.61002001]
[1642142328993,33.2177,149.67,149.59,35.61002001]
[1642142329194,33.2177,149.67,149.59,2.673]
[1642142329604,2.673,149.66,149.57,13.85676751]
[1642142330098,2.923,149.66,149.57,13.85676751]
[1642142330495,2.923,149.66,149.57,10.0258]
[1642142331300,10.0265,149.65,149.57,10.0258]
[1642142331594,2.673,149.64,149.57,10.0258]
[1642142331797,23.4405,149.64,149.57,10.0258]
[1642142332002,23.6905,149.64,149.57,10.0258]
[1642142333700,23.6905,149.64,149.57,12.6988]
[1642142334904,23.6905,149.64,149.57,10.0258]
[1642142335102,23.6905,149.64,149.57,12.6988]
[1642142340934,23.6905,149.64,149.57,12.9588]
[1642142341535,23.6905,149.64,149.57,12.6988]
[1642142343139,23.6905,149.64,149.57,10.0258]
[1642142348644,23.6905,149.64,149.58,1.91791698]
[1642142357855,33.7179,149.64,149.58,1.91791698]
[1642142360759,0.25,149.64,149.58,1.91791698]
[1642142360959,0.25,149.66,149.59,29.16604788]
[1642142361158,0.25,149.66,149.6,2.673]
[1642142361358,24.80716342,149.67,149.6,2.673]
[1642142361559,24.80716342,149.67,149.59,31.83904788]
[1642142361758,32.9871,149.67,149.59,43.78186486]
[1642142361959,22.9619,149.67,149.59,43.78186486]
[1642142362965,22.9619,149.67,149.59,14.61581698]
[1642142365391,32.9872,149.67,149.59,14.61581698]
[1642142365794,32.9872,149.67,149.59,4.59091698]
[1642142366191,32.9872,149.67,149.59,1.91791698]
[1642142366390,99.9772,149.67,149.59,1.91791698]
[1642142367391,32.9872,149.67,149.59,1.91791698]
[1642142367794,35.6602,149.67,149.59,1.91791698]
[1642142368794,32.9872,149.67,149.59,1.91791698]
[1642142368993,22.9619,149.67,149.59,11.94261698]
[1642142369392,22.7119,149.67,149.59,11.94261698]
[1642142370899,25.6349,149.67,149.59,11.94261698]
[1642142371898,22.9619,149.67,149.59,11.94261698]
[1642142372098,32.9872,149.67,149.59,11.94261698]
[1642142372698,32.9872,149.67,149.59,1.91791698]
[1642142374705,2.673,149.66,149.59,1.91791698]
[1642142374901,10.029,149.63,149.59,1.91791698]
[1642142375102,2.673,149.62,149.59,1.91791698]
[1642142375502,2.12039772,149.61,149.59,1.91791698]
[1642142375736,2.12039772,149.61,149.6,3.0321]
[1642142375907,0.25,149.61,149.59,1.91791698]
[1642142376304,0.25,149.61,149.55,1.91791698]
[1642142377104,12.9509,149.64,149.55,1.91791698]
[1642142377507,14.79616342,149.64,149.55,1.91791698]
[1642142378808,24.36616342,149.64,149.55,1.91791698]
[1642142380509,1.84526342,149.63,149.54,1.91791698]